[Event "Early-Titled-Tuesday-Blitz-May-28-2024"]
[Site "Chess.com"]
[Date "2024.05.28"]
[Round "1"]
[White "Casper"]
[Black "vladislavkovalev"]
[Result "0-1"]
[WhiteElo "2510"]
[BlackElo "2912"]
[TimeControl "180+1"]
[EndTime "8:01:45 PDT"]
[Termination "vladislavkovalev won by resignation"]

1. e4 {[%clk 0:02:58.9]} 1... e5 {[%clk 0:03:00.4]} 2. Nf3 {[%clk 0:02:57.6]}
2... Nc6 {[%clk 0:03:00.5]} 3. d4 {[%clk 0:02:57.4]} 3... exd4 {[%clk
0:03:00.7]} 4. Nxd4 {[%clk 0:02:58.1]} 4... Qf6 {[%clk 0:03:01]} 5. Nxc6 {[%clk
0:02:57.3]} 5... Bc5 {[%clk 0:03:00.9]} 6. Qe2 {[%clk 0:02:54.2]} 6... dxc6
{[%clk 0:03:00.9]} 7. e5 {[%clk 0:02:54.2]} 7... Qg6 {[%clk 0:03:00.1]} 8. Nc3
{[%clk 0:02:53.8]} 8... Bf5 {[%clk 0:03:00]} 9. Be3 {[%clk 0:02:49.2]} 9... Bxe3
{[%clk 0:02:53.7]} 10. Qxe3 {[%clk 0:02:50.1]} 10... Bxc2 {[%clk 0:02:54.3]} 11.
Rc1 {[%clk 0:02:30.4]} 11... Ne7 {[%clk 0:02:50.9]} 12. Bc4 {[%clk 0:02:30.3]}
12... Qxg2 {[%clk 0:02:44.3]} 13. Kd2 {[%clk 0:02:26.8]} 13... Bg6 {[%clk
0:02:43.6]} 14. Rhg1 {[%clk 0:02:25]} 14... O-O-O+ {[%clk 0:02:43.3]} 15. Ke2
{[%clk 0:02:18.7]} 15... Bh5+ {[%clk 0:02:41.2]} 0-1

[Event "Early-Titled-Tuesday-Blitz-May-28-2024"]
[Site "Chess.com"]
[Date "2024.05.28"]
[Round "1"]
[White "krstulov_alex"]
[Black "ZachHKL"]
[Result "1-0"]
[WhiteElo "2652"]
[BlackElo "2345"]
[TimeControl "180+1"]
[EndTime "8:01:48 PDT"]
[Termination "krstulov_alex won by resignation"]

1. e4 {[%clk 0:02:56.7]} 1... c5 {[%clk 0:02:59.4]} 2. Ne2 {[%clk 0:02:45.8]}
2... d6 {[%clk 0:02:59.1]} 3. g3 {[%clk 0:02:43.8]} 3... g6 {[%clk 0:02:57.6]}
4. Bg2 {[%clk 0:02:44.5]} 4... Bg7 {[%clk 0:02:58.2]} 5. O-O {[%clk 0:02:43.5]}
5... Nf6 {[%clk 0:02:58.8]} 6. d3 {[%clk 0:02:44]} 6... O-O {[%clk 0:02:59.3]}
7. c3 {[%clk 0:02:44.1]} 7... e5 {[%clk 0:02:58.1]} 8. Nd2 {[%clk 0:02:42.8]}
8... Nc6 {[%clk 0:02:58.5]} 9. a4 {[%clk 0:02:43.4]} 9... a6 {[%clk 0:02:57.8]}
10. Nc4 {[%clk 0:02:43.6]} 10... Be6 {[%clk 0:02:56.8]} 11. b3 {[%clk
0:02:42.6]} 11... Qc7 {[%clk 0:02:53.4]} 12. Bg5 {[%clk 0:02:41.2]} 12... b5
{[%clk 0:02:52.8]} 13. Na3 {[%clk 0:02:40.2]} 13... bxa4 {[%clk 0:02:49.6]} 14.
bxa4 {[%clk 0:02:41.1]} 14... Nd7 {[%clk 0:02:47.1]} 15. Nc4 {[%clk 0:02:40.9]}
15... Bxc4 {[%clk 0:02:46.3]} 16. dxc4 {[%clk 0:02:41.8]} 16... Nb6 {[%clk
0:02:46.8]} 17. Qd3 {[%clk 0:02:38.8]} 17... Na5 {[%clk 0:02:45.9]} 18. Rfd1
{[%clk 0:02:36.3]} 18... Naxc4 {[%clk 0:02:46]} 19. a5 {[%clk 0:02:34.9]} 19...
Nb2 {[%clk 0:02:41]} 20. axb6 {[%clk 0:02:35.2]} 20... Qb7 {[%clk 0:02:35.3]}
21. Qd5 {[%clk 0:02:33.8]} 21... Nxd1 {[%clk 0:02:35.8]} 22. Qxb7 {[%clk
0:02:33.8]} 1-0

[Event "Early-Titled-Tuesday-Blitz-May-28-2024"]
[Site "Chess.com"]
[Date "2024.05.28"]
[Round "1"]
[White "Nekoo04"]
[Black "Kildepiotr"]
[Result "0-1"]
[WhiteElo "2420"]
[BlackElo "2744"]
[TimeControl "180+1"]
[EndTime "8:02:30 PDT"]
[Termination "Kildepiotr won by resignation"]

1. d4 {[%clk 0:02:56.9]} 1... c5 {[%clk 0:02:59.1]} 2. d5 {[%clk 0:02:54.7]}
2... e5 {[%clk 0:02:59.2]} 3. e4 {[%clk 0:02:50.1]} 3... d6 {[%clk 0:02:59.3]}
4. Nc3 {[%clk 0:02:48.1]} 4... Be7 {[%clk 0:02:59.1]} 5. Bb5+ {[%clk 0:02:40.3]}
5... Nd7 {[%clk 0:02:58.8]} 6. f4 {[%clk 0:02:28.4]} 6... exf4 {[%clk
0:02:57.4]} 7. Bxf4 {[%clk 0:02:29.3]} 7... a6 {[%clk 0:02:56.7]} 8. Bd3 {[%clk
0:02:08.3]} 8... Bf6 {[%clk 0:02:43.8]} 9. Nf3 {[%clk 0:02:06.1]} 9... Qb6
{[%clk 0:02:42.9]} 10. Rb1 {[%clk 0:01:56.3]} 10... Ne7 {[%clk 0:02:42.4]} 11.
Qe2 {[%clk 0:01:39.3]} 11... Ng6 {[%clk 0:02:40.7]} 12. Be3 {[%clk 0:01:33.7]}
12... Bxc3+ {[%clk 0:02:36.5]} 0-1

[Event "Early-Titled-Tuesday-Blitz-May-28-2024"]
[Site "Chess.com"]
[Date "2024.05.28"]
[Round "1"]
[White "Kostya0705"]
[Black "larsmandreassen"]
[Result "1-0"]
[WhiteElo "2589"]
[BlackElo "2210"]
[TimeControl "180+1"]
[EndTime "8:03:01 PDT"]
[Termination "Kostya0705 won by resignation"]

1. e4 {[%clk 0:03:00.9]} 1... d5 {[%clk 0:02:40.4]} 2. exd5 {[%clk 0:03:01.5]}
2... Nf6 {[%clk 0:02:39.5]} 3. d4 {[%clk 0:03:00.4]} 3... Bg4 {[%clk 0:02:39.4]}
4. Nf3 {[%clk 0:02:59.8]} 4... Qxd5 {[%clk 0:02:39.2]} 5. Be2 {[%clk 0:02:57.2]}
5... e6 {[%clk 0:02:39.5]} 6. c4 {[%clk 0:02:57.1]} 6... Bb4+ {[%clk 0:02:37.4]}
7. Bd2 {[%clk 0:02:56.5]} 7... Bxd2+ {[%clk 0:02:37.7]} 8. Nbxd2 {[%clk
0:02:57.4]} 8... Qd8 {[%clk 0:02:01.2]} 9. O-O {[%clk 0:02:56.7]} 9... O-O
{[%clk 0:02:01.7]} 10. h3 {[%clk 0:02:53.9]} 10... Bh5 {[%clk 0:02:00.3]} 11.
Qb3 {[%clk 0:02:53.3]} 11... b6 {[%clk 0:01:58.9]} 12. Rad1 {[%clk 0:02:52.4]}
12... c6 {[%clk 0:01:57.9]} 13. Rfe1 {[%clk 0:02:51.5]} 13... Nbd7 {[%clk
0:01:58]} 14. Ne5 {[%clk 0:02:48.2]} 14... Bxe2 {[%clk 0:01:57.6]} 15. Rxe2
{[%clk 0:02:49.1]} 15... Qc7 {[%clk 0:01:58.1]} 16. f4 {[%clk 0:02:47.2]} 16...
Rad8 {[%clk 0:01:56.8]} 17. Ndf3 {[%clk 0:02:46.3]} 17... g6 {[%clk 0:01:56]}
18. Qe3 {[%clk 0:02:44.8]} 18... Nh5 {[%clk 0:01:43.7]} 19. g4 {[%clk
0:02:43.7]} 19... Ng7 {[%clk 0:01:36.6]} 20. Ng5 {[%clk 0:02:41]} 20... Nxe5
{[%clk 0:01:35.2]} 21. fxe5 {[%clk 0:02:39.8]} 21... c5 {[%clk 0:01:33.5]} 22.
Ne4 {[%clk 0:02:38.6]} 22... cxd4 {[%clk 0:01:32]} 23. Nf6+ {[%clk 0:02:38]}
23... Kh8 {[%clk 0:01:31.5]} 24. Qh6 {[%clk 0:02:38.9]} 1-0

[Event "Early-Titled-Tuesday-Blitz-May-28-2024"]
[Site "Chess.com"]
[Date "2024.05.28"]
[Round "1"]
[White "David_Arutinian"]
[Black "Al_Shima"]
[Result "1-0"]
[WhiteElo "2851"]
[BlackElo "2476"]
[TimeControl "180+1"]
[EndTime "8:03:06 PDT"]
[Termination "David_Arutinian won by resignation"]

1. Nf3 {[%clk 0:02:56.2]} 1... Nf6 {[%clk 0:02:53.4]} 2. c4 {[%clk 0:02:52.8]}
2... c5 {[%clk 0:02:45]} 3. d4 {[%clk 0:02:46.8]} 3... Nc6 {[%clk 0:02:45.9]} 4.
d5 {[%clk 0:02:46.5]} 4... Nd4 {[%clk 0:02:44.3]} 5. Nxd4 {[%clk 0:02:44.6]}
5... cxd4 {[%clk 0:02:45.2]} 6. Qxd4 {[%clk 0:02:45.1]} 6... d6 {[%clk
0:02:35.8]} 7. Nc3 {[%clk 0:02:44.1]} 7... e5 {[%clk 0:02:28.2]} 8. dxe6 {[%clk
0:02:41.9]} 8... Bxe6 {[%clk 0:02:26.4]} 9. e4 {[%clk 0:02:42.4]} 9... Be7
{[%clk 0:02:23.8]} 10. Be2 {[%clk 0:02:35.5]} 10... Qc7 {[%clk 0:02:23.8]} 11.
Be3 {[%clk 0:02:30.4]} 11... a6 {[%clk 0:02:22.9]} 12. O-O {[%clk 0:02:29.7]}
12... O-O {[%clk 0:02:23]} 13. Rac1 {[%clk 0:02:28.8]} 13... Qa5 {[%clk
0:02:22.5]} 14. b3 {[%clk 0:02:27.8]} 14... Nd7 {[%clk 0:02:21.7]} 15. Rfd1
{[%clk 0:02:25.4]} 15... Ne5 {[%clk 0:02:14.4]} 16. Qd2 {[%clk 0:02:22.5]} 16...
Nc6 {[%clk 0:02:06.4]} 17. Nd5 {[%clk 0:02:20.1]} 17... Qxd2 {[%clk 0:02:03.4]}
18. Nxe7+ {[%clk 0:02:17.1]} 18... Nxe7 {[%clk 0:02:02.8]} 19. Rxd2 {[%clk
0:02:18]} 19... Rfd8 {[%clk 0:01:59.3]} 20. Rcd1 {[%clk 0:02:18]} 20... b5
{[%clk 0:01:56.6]} 21. cxb5 {[%clk 0:02:17]} 21... axb5 {[%clk 0:01:56.6]} 22.
Bxb5 {[%clk 0:02:17.6]} 22... Rxa2 {[%clk 0:01:55.9]} 23. Rxa2 {[%clk
0:02:16.6]} 23... Bxb3 {[%clk 0:01:56]} 24. Rad2 {[%clk 0:02:16.3]} 24... Bxd1
{[%clk 0:01:55.5]} 25. Rxd1 {[%clk 0:02:17.2]} 25... d5 {[%clk 0:01:55.3]} 26.
exd5 {[%clk 0:02:17.2]} 26... Rxd5 {[%clk 0:01:56.1]} 27. Rxd5 {[%clk
0:02:16.9]} 27... Nxd5 {[%clk 0:01:57]} 28. Bd4 {[%clk 0:02:16.5]} 1-0

[Event "Early-Titled-Tuesday-Blitz-May-28-2024"]
[Site "Chess.com"]
[Date "2024.05.28"]
[Round "1"]
[White "Cheer_Down"]
[Black "KuzubovYuriy"]
[Result "0-1"]
[WhiteElo "2500"]
[BlackElo "2899"]
[TimeControl "180+1"]
[EndTime "8:03:31 PDT"]
[Termination "KuzubovYuriy won by resignation"]

1. e4 {[%clk 0:02:56.5]} 1... c5 {[%clk 0:02:59.7]} 2. Nf3 {[%clk 0:02:56]} 2...
Nc6 {[%clk 0:03:00.5]} 3. d4 {[%clk 0:02:55.7]} 3... cxd4 {[%clk 0:03:01.4]} 4.
Nxd4 {[%clk 0:02:55.9]} 4... g6 {[%clk 0:03:02.2]} 5. c4 {[%clk 0:02:55.1]} 5...
Nf6 {[%clk 0:03:02.9]} 6. Nc3 {[%clk 0:02:54.5]} 6... d6 {[%clk 0:03:03.6]} 7.
f3 {[%clk 0:02:49.9]} 7... Bg7 {[%clk 0:03:04.1]} 8. Be3 {[%clk 0:02:49.8]} 8...
O-O {[%clk 0:03:04.2]} 9. Qd2 {[%clk 0:02:50]} 9... Nxd4 {[%clk 0:03:04.1]} 10.
Bxd4 {[%clk 0:02:49.4]} 10... Bd7 {[%clk 0:03:04.3]} 11. O-O-O {[%clk
0:02:48.9]} 11... Rc8 {[%clk 0:02:58.4]} 12. Kb1 {[%clk 0:02:48.4]} 12... a6
{[%clk 0:02:57.5]} 13. Nd5 {[%clk 0:02:44.2]} 13... Nxd5 {[%clk 0:02:51.2]} 14.
cxd5 {[%clk 0:02:43.6]} 14... Bxd4 {[%clk 0:02:47.2]} 15. Qxd4 {[%clk
0:02:43.8]} 15... Qa5 {[%clk 0:02:47.9]} 16. h4 {[%clk 0:02:37.5]} 16... h5
{[%clk 0:02:29.9]} 17. g4 {[%clk 0:02:30.1]} 17... hxg4 {[%clk 0:02:24.6]} 18.
h5 {[%clk 0:02:30]} 18... g5 {[%clk 0:02:24.9]} 19. h6 {[%clk 0:01:54.4]} 19...
f6 {[%clk 0:02:24.9]} 20. fxg4 {[%clk 0:01:38.5]} 20... Qc5 {[%clk 0:02:17.2]}
21. Qd2 {[%clk 0:01:38.3]} 21... Ba4 {[%clk 0:02:11.3]} 22. b3 {[%clk 0:01:35]}
22... Bd7 {[%clk 0:02:11.5]} 23. Rh5 {[%clk 0:01:27]} 23... Qc3 {[%clk
0:02:09.6]} 24. Rxg5+ {[%clk 0:01:27.1]} 24... fxg5 {[%clk 0:02:10.5]} 25. Qxg5+
{[%clk 0:01:26.9]} 25... Kh8 {[%clk 0:02:10.8]} 26. e5 {[%clk 0:01:26.3]} 0-1

[Event "Early-Titled-Tuesday-Blitz-May-28-2024"]
[Site "Chess.com"]
[Date "2024.05.28"]
[Round "1"]
[White "ManMish2"]
[Black "hsd2016"]
[Result "0-1"]
[WhiteElo "2701"]
[BlackElo "2415"]
[TimeControl "180+1"]
[EndTime "8:03:39 PDT"]
[Termination "hsd2016 won by resignation"]

1. e4 {[%clk 0:02:59.7]} 1... e5 {[%clk 0:02:57.9]} 2. Nf3 {[%clk 0:02:59.8]}
2... Nc6 {[%clk 0:02:58]} 3. Bb5 {[%clk 0:03:00.2]} 3... a6 {[%clk 0:02:57.9]}
4. Ba4 {[%clk 0:03:00.4]} 4... Nf6 {[%clk 0:02:58]} 5. O-O {[%clk 0:03:00.4]}
5... b5 {[%clk 0:02:58.6]} 6. Bb3 {[%clk 0:03:00.4]} 6... Bc5 {[%clk 0:02:58.3]}
7. c3 {[%clk 0:02:59.9]} 7... O-O {[%clk 0:02:52.2]} 8. d4 {[%clk 0:02:49.4]}
8... Bb6 {[%clk 0:02:52.1]} 9. Re1 {[%clk 0:02:48.6]} 9... exd4 {[%clk
0:02:49.8]} 10. e5 {[%clk 0:02:37.7]} 10... Ng4 {[%clk 0:02:32.4]} 11. Bg5
{[%clk 0:02:33.5]} 11... Qe8 {[%clk 0:02:28.2]} 12. cxd4 {[%clk 0:02:33.2]}
12... h6 {[%clk 0:02:20.8]} 13. Bh4 {[%clk 0:02:31.2]} 13... h5 {[%clk 0:02:16]}
14. Bg5 {[%clk 0:02:25.5]} 14... Na5 {[%clk 0:02:13.1]} 15. h3 {[%clk
0:02:23.5]} 15... Nxb3 {[%clk 0:02:13]} 16. axb3 {[%clk 0:01:59.6]} 16... Nh6
{[%clk 0:02:12.8]} 17. Bxh6 {[%clk 0:01:59.6]} 17... gxh6 {[%clk 0:02:13.7]} 18.
Nc3 {[%clk 0:02:00]} 18... Bb7 {[%clk 0:02:12.8]} 19. Nh4 {[%clk 0:01:54.9]}
19... f6 {[%clk 0:01:59.1]} 20. exf6 {[%clk 0:01:53.1]} 20... Qf7 {[%clk
0:01:58.4]} 21. Nf5 {[%clk 0:01:44.3]} 21... Qxf6 {[%clk 0:01:55.5]} 22. Ne7+
{[%clk 0:01:43.8]} 22... Kh8 {[%clk 0:01:54.4]} 23. Qxh5 {[%clk 0:01:42.8]}
23... Qxf2+ {[%clk 0:01:53]} 0-1

[Event "Early-Titled-Tuesday-Blitz-May-28-2024"]
[Site "Chess.com"]
[Date "2024.05.28"]
[Round "1"]
[White "ViktoriyaTarasova"]
[Black "The_Sherman_Variation"]
[Result "1-0"]
[WhiteElo "2361"]
[BlackElo "2636"]
[TimeControl "180+1"]
[EndTime "8:03:56 PDT"]
[Termination "ViktoriyaTarasova won on time"]

1. d4 {[%clk 0:03:00.9]} 1... d5 {[%clk 0:02:59.6]} 2. c4 {[%clk 0:03:00.6]}
2... e6 {[%clk 0:02:59.5]} 3. Nc3 {[%clk 0:03:00]} 3... Be7 {[%clk 0:02:57.6]}
4. cxd5 {[%clk 0:02:59.6]} 4... exd5 {[%clk 0:02:57.7]} 5. Bf4 {[%clk
0:02:59.6]} 5... Nf6 {[%clk 0:02:56.2]} 6. e3 {[%clk 0:02:59.7]} 6... O-O {[%clk
0:02:55.9]} 7. Bd3 {[%clk 0:02:59.3]} 7... Re8 {[%clk 0:02:52.7]} 8. Nge2 {[%clk
0:02:58.9]} 8... c6 {[%clk 0:02:52.2]} 9. h3 {[%clk 0:02:58.4]} 9... Bd6 {[%clk
0:02:39.1]} 10. Qc2 {[%clk 0:02:57.5]} 10... a5 {[%clk 0:02:32.9]} 11. O-O
{[%clk 0:02:56.5]} 11... Na6 {[%clk 0:02:32.6]} 12. a3 {[%clk 0:02:55.2]} 12...
Nc7 {[%clk 0:02:31.7]} 13. Rae1 {[%clk 0:02:50.4]} 13... Ne6 {[%clk 0:02:25.4]}
14. Bxd6 {[%clk 0:02:49.9]} 14... Qxd6 {[%clk 0:02:04.1]} 15. Ng3 {[%clk
0:02:49.8]} 1-0

[Event "Early-Titled-Tuesday-Blitz-May-28-2024"]
[Site "Chess.com"]
[Date "2024.05.28"]
[Round "1"]
[White "wonderfultime"]
[Black "EgorYakovlev"]
[Result "1-0"]
[WhiteElo "3026"]
[BlackElo "2533"]
[TimeControl "180+1"]
[EndTime "8:03:57 PDT"]
[Termination "wonderfultime won by resignation"]

1. d4 {[%clk 0:03:00.9]} 1... Nf6 {[%clk 0:02:57.3]} 2. Nf3 {[%clk 0:03:01.6]}
2... c5 {[%clk 0:02:56.2]} 3. c3 {[%clk 0:03:01.4]} 3... b6 {[%clk 0:02:55.7]}
4. Bf4 {[%clk 0:03:01.9]} 4... Bb7 {[%clk 0:02:56]} 5. e3 {[%clk 0:03:02.6]}
5... g6 {[%clk 0:02:55.9]} 6. h3 {[%clk 0:03:02.7]} 6... Bg7 {[%clk 0:02:56.4]}
7. Nbd2 {[%clk 0:03:03.4]} 7... O-O {[%clk 0:02:56.2]} 8. Bd3 {[%clk 0:03:04.1]}
8... d6 {[%clk 0:02:56.5]} 9. Qe2 {[%clk 0:03:04.2]} 9... Nbd7 {[%clk
0:02:56.4]} 10. Bh2 {[%clk 0:03:04.6]} 10... Re8 {[%clk 0:02:56.4]} 11. O-O
{[%clk 0:03:03.4]} 11... a6 {[%clk 0:02:51.8]} 12. a4 {[%clk 0:03:03.6]} 12...
e5 {[%clk 0:02:49.5]} 13. dxe5 {[%clk 0:03:03.6]} 13... dxe5 {[%clk 0:02:50.3]}
14. e4 {[%clk 0:02:58.8]} 14... Qe7 {[%clk 0:02:46.6]} 15. Rfd1 {[%clk
0:02:46.6]} 15... Nh5 {[%clk 0:02:36.2]} 16. Bc4 {[%clk 0:02:44.7]} 16... Nf4
{[%clk 0:02:35.1]} 17. Qf1 {[%clk 0:02:45.4]} 17... Nf6 {[%clk 0:02:05.2]} 18.
Re1 {[%clk 0:02:19.6]} 18... Red8 {[%clk 0:01:52.8]} 19. Bxf4 {[%clk 0:02:17.3]}
19... exf4 {[%clk 0:01:52.5]} 20. e5 {[%clk 0:02:18.2]} 20... Nd5 {[%clk
0:01:48.5]} 21. Ne4 {[%clk 0:02:14.1]} 21... Nc7 {[%clk 0:01:42.8]} 22. Nd6
{[%clk 0:02:11.3]} 22... Ne6 {[%clk 0:01:42.7]} 23. Qe2 {[%clk 0:02:02.6]} 23...
Ng5 {[%clk 0:01:13.1]} 24. Nxb7 {[%clk 0:01:55.6]} 1-0

[Event "Early-Titled-Tuesday-Blitz-May-28-2024"]
[Site "Chess.com"]
[Date "2024.05.28"]
[Round "1"]
[White "Budisavljevic"]
[Black "Andrii_Prydun"]
[Result "1-0"]
[WhiteElo "2743"]
[BlackElo "2418"]
[TimeControl "180+1"]
[EndTime "8:03:58 PDT"]
[Termination "Budisavljevic won by resignation"]

1. d4 {[%clk 0:03:00.9]} 1... Nf6 {[%clk 0:02:48.3]} 2. Nf3 {[%clk 0:03:00.8]}
2... e6 {[%clk 0:02:48]} 3. Bf4 {[%clk 0:03:01]} 3... Bd6 {[%clk 0:02:47.3]} 4.
e3 {[%clk 0:03:01.8]} 4... Bxf4 {[%clk 0:02:47.3]} 5. exf4 {[%clk 0:03:02.6]}
5... d6 {[%clk 0:02:47.5]} 6. Nc3 {[%clk 0:03:01.6]} 6... O-O {[%clk 0:02:47.7]}
7. Bd3 {[%clk 0:03:01]} 7... b6 {[%clk 0:02:48.6]} 8. Qe2 {[%clk 0:02:59.6]}
8... Bb7 {[%clk 0:02:49.5]} 9. O-O-O {[%clk 0:02:59.4]} 9... Nbd7 {[%clk
0:02:49.9]} 10. Rhg1 {[%clk 0:02:58.2]} 10... Nd5 {[%clk 0:02:48.9]} 11. Nxd5
{[%clk 0:02:55.6]} 11... Bxd5 {[%clk 0:02:49.8]} 12. Kb1 {[%clk 0:02:55.6]}
12... Qc8 {[%clk 0:02:36.6]} 13. c4 {[%clk 0:02:53.9]} 13... Bc6 {[%clk
0:02:35.8]} 14. g4 {[%clk 0:02:49.8]} 14... Qb7 {[%clk 0:02:34.9]} 15. Rg3
{[%clk 0:02:45.6]} 15... a6 {[%clk 0:01:34.4]} 16. Rh3 {[%clk 0:02:43.8]} 16...
g6 {[%clk 0:01:33.1]} 17. Ng5 {[%clk 0:02:43.7]} 17... Nf6 {[%clk 0:01:31.9]}
18. f5 {[%clk 0:02:23.8]} 18... exf5 {[%clk 0:01:22.4]} 19. gxf5 {[%clk
0:02:24.7]} 19... Rae8 {[%clk 0:01:20.1]} 20. Qd2 {[%clk 0:02:24.5]} 20... Ne4
{[%clk 0:01:15.2]} 21. Nxe4 {[%clk 0:02:18.4]} 21... Bxe4 {[%clk 0:01:07]} 22.
Qh6 {[%clk 0:02:16.1]} 22... Bxd3+ {[%clk 0:01:03.4]} 23. Ka1 {[%clk 0:02:14.7]}
1-0

[Event "Early-Titled-Tuesday-Blitz-May-28-2024"]
[Site "Chess.com"]
[Date "2024.05.28"]
[Round "1"]
[White "SoCalJuniorChess"]
[Black "xasid81"]
[Result "0-1"]
[WhiteElo "2212"]
[BlackElo "2592"]
[TimeControl "180+1"]
[EndTime "8:03:58 PDT"]
[Termination "xasid81 won by resignation"]

1. d4 {[%clk 0:03:00.9]} 1... Nf6 {[%clk 0:02:56.8]} 2. Nc3 {[%clk 0:03:01.2]}
2... e6 {[%clk 0:02:55.1]} 3. Bf4 {[%clk 0:02:59.3]} 3... c5 {[%clk 0:02:54.5]}
4. dxc5 {[%clk 0:02:56.1]} 4... Bxc5 {[%clk 0:02:53.7]} 5. Bd6 {[%clk
0:02:40.7]} 5... Qb6 {[%clk 0:02:50.5]} 6. Bxc5 {[%clk 0:02:39.1]} 6... Qxc5
{[%clk 0:02:51.4]} 7. e3 {[%clk 0:02:37.7]} 7... d5 {[%clk 0:02:50.9]} 8. Nf3
{[%clk 0:02:37.3]} 8... Nc6 {[%clk 0:02:50.6]} 9. Be2 {[%clk 0:02:32.2]} 9...
Qb4 {[%clk 0:02:49]} 10. Rb1 {[%clk 0:02:15.1]} 10... O-O {[%clk 0:02:45.8]} 11.
O-O {[%clk 0:02:14.7]} 11... Rd8 {[%clk 0:02:45]} 12. Nd4 {[%clk 0:02:07.1]}
12... e5 {[%clk 0:02:38.9]} 13. Nxc6 {[%clk 0:01:56.1]} 13... bxc6 {[%clk
0:02:39.8]} 14. a3 {[%clk 0:01:55.5]} 14... Qd6 {[%clk 0:02:34.6]} 15. Na4
{[%clk 0:01:47.8]} 15... c5 {[%clk 0:02:30.4]} 16. c4 {[%clk 0:01:45.8]} 16...
d4 {[%clk 0:02:29.2]} 17. b4 {[%clk 0:01:44.8]} 17... cxb4 {[%clk 0:02:27]} 18.
axb4 {[%clk 0:01:44.5]} 18... d3 {[%clk 0:02:26.6]} 19. Bf3 {[%clk 0:01:41.8]}
19... e4 {[%clk 0:02:26.3]} 20. c5 {[%clk 0:01:31.1]} 20... Qe5 {[%clk
0:02:21.8]} 21. b5 {[%clk 0:01:13.1]} 21... exf3 {[%clk 0:02:17.3]} 22. Qxf3
{[%clk 0:01:14]} 22... Bg4 {[%clk 0:02:16.2]} 23. Qb7 {[%clk 0:01:10.8]} 23...
Be2 {[%clk 0:02:11.8]} 24. Rfe1 {[%clk 0:01:09.1]} 24... d2 {[%clk 0:02:10]} 0-1

[Event "Early-Titled-Tuesday-Blitz-May-28-2024"]
[Site "Chess.com"]
[Date "2024.05.28"]
[Round "1"]
[White "luggevoila"]
[Black "Cubitas"]
[Result "1-0"]
[WhiteElo "2347"]
[BlackElo "2622"]
[TimeControl "180+1"]
[EndTime "8:04:07 PDT"]
[Termination "luggevoila won by resignation"]

1. e4 {[%clk 0:03:00.9]} 1... c5 {[%clk 0:02:58.3]} 2. Nf3 {[%clk 0:03:00.3]}
2... d6 {[%clk 0:02:58.2]} 3. Bb5+ {[%clk 0:03:00.2]} 3... Bd7 {[%clk
0:02:56.6]} 4. a4 {[%clk 0:03:00.7]} 4... Nc6 {[%clk 0:02:50.9]} 5. O-O {[%clk
0:02:59.6]} 5... g6 {[%clk 0:02:50.6]} 6. c3 {[%clk 0:02:59.3]} 6... Bg7 {[%clk
0:02:50.8]} 7. d4 {[%clk 0:02:57]} 7... cxd4 {[%clk 0:02:46.1]} 8. cxd4 {[%clk
0:02:56.8]} 8... a6 {[%clk 0:02:39.9]} 9. Be2 {[%clk 0:02:39.8]} 9... e5 {[%clk
0:02:32.9]} 10. d5 {[%clk 0:02:36]} 10... Nb4 {[%clk 0:02:18.6]} 11. Nc3 {[%clk
0:02:31.6]} 11... Ne7 {[%clk 0:02:16.9]} 12. Qb3 {[%clk 0:02:29.4]} 12... a5
{[%clk 0:02:13.9]} 13. Bd2 {[%clk 0:02:25.1]} 13... O-O {[%clk 0:02:08.9]} 14.
Nb5 {[%clk 0:02:24.3]} 14... Bxb5 {[%clk 0:01:57.8]} 15. axb5 {[%clk 0:02:22.2]}
15... f5 {[%clk 0:01:52.8]} 16. Ng5 {[%clk 0:02:15.7]} 16... Qb6 {[%clk
0:01:42.4]} 17. Ne6 {[%clk 0:02:09.7]} 17... Rfc8 {[%clk 0:01:08.4]} 18. Be3
{[%clk 0:02:05.4]} 18... Rc5 {[%clk 0:01:08.8]} 19. Bxc5 {[%clk 0:01:55.4]}
19... dxc5 {[%clk 0:01:08]} 20. d6 {[%clk 0:01:52.5]} 20... Nc8 {[%clk
0:01:06.6]} 21. Ng5+ {[%clk 0:01:46.9]} 1-0

[Event "Early-Titled-Tuesday-Blitz-May-28-2024"]
[Site "Chess.com"]
[Date "2024.05.28"]
[Round "1"]
[White "Sawatdeekhrap"]
[Black "Veleamater"]
[Result "1-0"]
[WhiteElo "2780"]
[BlackElo "2439"]
[TimeControl "180+1"]
[EndTime "8:04:08 PDT"]
[Termination "Sawatdeekhrap won by resignation"]

1. e4 {[%clk 0:03:00.9]} 1... d6 {[%clk 0:02:59.7]} 2. d4 {[%clk 0:03:00]} 2...
g6 {[%clk 0:02:58.1]} 3. Nc3 {[%clk 0:02:59.8]} 3... Bg7 {[%clk 0:02:57.5]} 4.
Be3 {[%clk 0:03:00.1]} 4... Nf6 {[%clk 0:02:56.6]} 5. f3 {[%clk 0:03:00.7]} 5...
Nc6 {[%clk 0:02:53.7]} 6. g4 {[%clk 0:02:58.1]} 6... a6 {[%clk 0:02:50.6]} 7. d5
{[%clk 0:02:56.6]} 7... Ne5 {[%clk 0:02:49.3]} 8. g5 {[%clk 0:02:51.9]} 8... Nh5
{[%clk 0:02:48.8]} 9. Be2 {[%clk 0:02:48.9]} 9... f5 {[%clk 0:02:40.9]} 10. f4
{[%clk 0:02:42.7]} 10... Ng4 {[%clk 0:02:39.4]} 11. Bd4 {[%clk 0:02:34.2]} 11...
e5 {[%clk 0:02:35.5]} 12. dxe6 {[%clk 0:02:30.4]} 12... Bxe6 {[%clk 0:02:34.6]}
13. exf5 {[%clk 0:02:16.2]} 13... Bxf5 {[%clk 0:02:32.2]} 14. Bxg7 {[%clk
0:02:11.7]} 14... Nxg7 {[%clk 0:02:17.8]} 15. Bxg4 {[%clk 0:02:10.5]} 15... O-O
{[%clk 0:02:13.9]} 16. Bxf5 {[%clk 0:02:04.9]} 16... Nxf5 {[%clk 0:02:08.9]} 17.
Qd2 {[%clk 0:02:03]} 17... Re8+ {[%clk 0:02:07.7]} 18. Nge2 {[%clk 0:02:03.4]}
18... Ne3 {[%clk 0:02:07.4]} 19. Nd5 {[%clk 0:01:56.6]} 19... Ng2+ {[%clk
0:02:02.4]} 20. Kf2 {[%clk 0:01:55.1]} 20... Nh4 {[%clk 0:01:41.5]} 21. Nf6+
{[%clk 0:01:54.7]} 21... Kf7 {[%clk 0:01:38.4]} 22. Nxe8 {[%clk 0:01:48.2]}
22... Qxe8 {[%clk 0:01:35.9]} 23. Qd5+ {[%clk 0:01:45.7]} 23... Kg7 {[%clk
0:01:34.8]} 24. Rae1 {[%clk 0:01:31.6]} 24... Qa4 {[%clk 0:01:34.2]} 25. Qd4+
{[%clk 0:01:30.8]} 25... Qxd4+ {[%clk 0:01:31.2]} 26. Nxd4 {[%clk 0:01:31.7]}
1-0